bitfinex-derivatives/quotes_BTCF0:USTF0_20240917
["timestamp","ask_amount","ask_price","bid_price","bid_amount"]
[1726600851767,0.083606,60513.0,60512.0,0.08508585]
[1726600851965,0.274606,60513.0,60512.0,0.08508585]
[1726600858361,0.274606,60513.0,60512.0,0.07618585]
[1726600858560,0.082611,60509.0,60508.0,0.09147628]
[1726600858761,0.272611,60509.0,60508.0,0.082612]
[1726600859859,0.273611,60509.0,60508.0,0.082612]
[1726600860059,0.274611,60509.0,60508.0,0.082612]
[1726600860456,0.165238,60503.0,60502.0,0.00247921]
[1726600860661,0.716038,60503.0,60502.0,0.00247921]
[1726600860856,0.082633,60493.0,60492.0,0.082634]
[1726600861368,0.082635,60492.0,60490.0,0.082637]
[1726600861568,0.082637,60490.0,60489.0,0.01140813]
[1726600862161,0.19,60491.0,60489.0,0.01140813]
[1726600862466,0.19,60491.0,60489.0,0.09404613]
[1726600862665,0.19,60491.0,60490.0,0.082637]
[1726600864668,0.191,60491.0,60490.0,0.082637]
[1726600865274,0.192,60491.0,60490.0,0.082637]
[1726600865472,0.191,60491.0,60490.0,0.082637]
[1726600865675,0.192,60491.0,60490.0,0.082637]
[1726600867467,0.274636,60491.0,60490.0,0.082637]
[1726600873171,0.082638,60489.0,60488.0,0.09135386]
[1726600873375,0.082638,60489.0,60488.0,0.08264]
[1726600873879,0.274636,60491.0,60486.0,0.00247982]
[1726600873880,0.082641,60487.0,60486.0,0.00247982]
[1726600874182,0.272641,60487.0,60486.0,0.08512282]
[1726600874681,0.272641,60487.0,60486.0,0.09391553]
[1726600875070,0.272641,60487.0,60475.0,0.32958035]
[1726600875071,0.5508,60487.0,60475.0,0.32958035]
[1726600875274,0.19,60481.0,60475.0,0.00248035]
[1726600875778,0.443449,60482.0,60475.0,0.08513835]
[1726600875779,0.19,60476.0,60475.0,0.08513835]
[1726600876283,0.5508,60476.0,60470.0,0.1365]
[1726600876470,0.19,60471.0,60470.0,0.219164]
[1726600876884,0.3608,60476.0,60470.0,1.23262]
[1726600877183,0.3608,60476.0,60475.0,0.165316]
[1726600877383,0.37134691,60487.0,60479.0,0.165304]
[1726600877579,0.19,60485.0,60479.0,0.165304]
[1726600877777,0.19,60485.0,60479.0,0.082652]
[1726600877973,0.19248049,60480.0,60479.0,0.082652]
[1726600878576,0.19348049,60480.0,60479.0,0.082652]
[1726600879281,0.27613149,60480.0,60479.0,0.082652]
[1726600880089,0.27713149,60480.0,60479.0,0.082652]
[1726600881488,0.27713149,60480.0,60469.0,0.443466]
[1726600881489,0.19448049,60480.0,60469.0,0.3608]
[1726600881683,0.19,60470.0,60469.0,0.443466]
[1726600881883,0.19,60470.0,60469.0,0.45213485]
[1726600883085,0.273664,60470.0,60469.0,0.45213485]
[1726600883285,0.001,60470.0,60469.0,0.45213485]
[1726600883488,0.082656,60477.0,60476.0,0.082654]
[1726600883685,0.08613149,60480.0,60479.0,0.082652]
[1726600884381,0.08513149,60480.0,60479.0,0.082652]
[1726600885286,0.08613149,60480.0,60479.0,0.082652]
[1726600886394,0.08713149,60480.0,60479.0,0.082652]
[1726600888491,0.082662,60474.0,60473.0,0.082659]
[1726600888690,0.272662,60474.0,60473.0,0.082659]
[1726600889596,0.273662,60474.0,60473.0,0.082659]
[1726600890189,0.274662,60474.0,60473.0,0.082659]
[1726600892591,0.084662,60474.0,60473.0,0.082659]
[1726600894204,0.002,60474.0,60473.0,0.165319]
[1726600894396,0.002,60474.0,60473.0,0.14848808]
[1726600894590,0.192,60474.0,60473.0,0.14848808]
[1726600895096,0.274659,60474.0,60469.0,0.51806693]
[1726600895298,0.355328,60470.0,60469.0,0.3608]
[1726600895492,0.165338,60467.0,60466.0,0.00248046]
[1726600896700,0.082669,60467.0,60466.0,0.00248046]
[1726600896891,0.083669,60467.0,60466.0,0.00248046]
[1726600897799,0.082669,60467.0,60466.0,0.00248046]
[1726600898094,0.083669,60467.0,60466.0,0.00248046]
[1726600899198,0.084669,60467.0,60466.0,0.00248046]
[1726600899591,0.084669,60467.0,60465.0,0.09135433]
[1726600899592,0.08267,60466.0,60465.0,0.09135433]
[1726600899794,0.19,60466.0,60448.0,0.06582908]
[1726600899994,0.19,60466.0,60449.0,0.351693]
[1726600899995,0.19,60450.0,60449.0,0.351693]
[1726600900503,0.19,60450.0,60449.0,1.447973]
[1726600901601,0.191,60450.0,60449.0,1.447973]
[1726600903091,0.273692,60450.0,60449.0,0.082693]
[1726600903292,0.274692,60450.0,60449.0,0.082693]
[1726600904500,0.635492,60450.0,60449.0,0.082693]
[1726600904897,0.082696,60447.0,60446.0,0.0086964]
[1726600905095,0.5528,60450.0,60444.0,0.082699]
[1726600905096,0.082701,60445.0,60444.0,0.082699]
[1726600905403,0.272701,60445.0,60444.0,0.082699]
[1726600905701,0.36388001,60450.0,60444.0,0.12602823]
[1726600905909,0.32142501,60450.0,60449.0,0.08235124]
[1726600906103,0.51142501,60450.0,60449.0,0.29106793]
[1726600906309,0.082693,60449.0,60448.0,0.082695]
[1726600907107,0.001,60450.0,60448.0,0.21119593]
[1726600907299,0.001,60450.0,60449.0,0.29140649]
[1726600907604,0.3608,60473.0,60467.0,0.082668]
[1726600907807,0.19880636,60471.0,60467.0,0.148501]
[1726600908008,0.19880636,60471.0,60467.0,0.082668]
[1726600908902,0.082673,60464.0,60463.0,0.00248056]
[1726600909200,0.272673,60464.0,60463.0,0.00248056]
[1726600909396,0.934179,60464.0,60463.0,0.06584022]
[1726600909698,0.082682,60457.0,60456.0,0.082684]
[1726600910908,0.083682,60457.0,60456.0,0.082684]
[1726600911613,0.001,60457.0,60456.0,0.16497525]
[1726600911808,0.001,60457.0,60456.0,0.29099503]
[1726600912106,0.001,60457.0,60456.0,0.29299907]
[1726600912107,0.002,60457.0,60456.0,0.29299907]
[1726600913412,0.002,60457.0,60456.0,0.16699321]
[1726600914607,0.002,60457.0,60456.0,0.29299518]
[1726600914820,0.002,60457.0,60456.0,0.16699321]
[1726600915312,0.084682,60457.0,60456.0,0.002]
[1726600916006,0.00248138,60463.0,60462.0,0.16535]
[1726600916903,0.00248138,60463.0,60462.0,0.082675]
[1726600917309,0.00348138,60463.0,60462.0,0.37366867]
[1726600917509,0.19,60473.0,60469.0,0.00248052]
[1726600917910,0.19,60473.0,60472.0,0.082662]
[1726600918708,0.191,60473.0,60472.0,0.082662]
[1726600919516,0.191,60473.0,60472.0,0.085662]
[1726600919712,0.1419,60483.0,60472.0,1.542542]
[1726600919918,0.3608,60484.0,60483.0,0.082647]
[1726600920511,0.19,60485.0,60484.0,0.082645]
[1726600921012,0.00248052,60486.0,60485.0,0.082644]
[1726600921310,0.19248052,60486.0,60485.0,0.082644]
[1726600921510,0.19248052,60486.0,60483.0,0.004]
[1726600921714,0.27512452,60486.0,60485.0,0.082644]
[1726600922618,0.27512452,60486.0,60464.0,0.00248078]
[1726600922619,0.069652,60479.0,60464.0,0.00248078]
[1726600922817,0.19,60473.0,60472.0,0.082662]
[1726600923011,0.00248042,60477.0,60476.0,0.082656]
[1726600923416,0.18548042,60479.0,60476.0,0.082656]
[1726600923711,0.19,60477.0,60476.0,0.082656]
[1726600924511,0.176,60477.0,60476.0,0.082656]
[1726600925414,0.176,60477.0,60476.0,0.096656]
[1726600925924,0.176,60477.0,60476.0,0.091656]
[1726600926219,0.258655,60477.0,60476.0,0.023]
[1726600926410,0.258655,60477.0,60476.0,0.022]
[1726600927417,0.34131,60477.0,60476.0,0.022]
[1726600927622,0.30341,60477.0,60476.0,0.022]
[1726600927919,0.30341,60477.0,60458.0,0.09086347]
[1726600927920,0.082657,60476.0,60449.0,0.3608]
[1726600928219,0.082657,60476.0,60452.0,0.08517014]
[1726600928220,0.19,60453.0,60452.0,0.08517014]
[1726600928726,0.176,60453.0,60452.0,0.08517014]
[1726600928915,0.176,60453.0,60452.0,0.09397811]
[1726600929417,0.176,60453.0,60452.0,0.10797811]
[1726600929818,0.176,60453.0,60452.0,0.11597811]
[1726600930526,0.177,60453.0,60452.0,0.11597811]
[1726600931108,0.001,60453.0,60452.0,0.11597811]
[1726600931514,0.001,60453.0,60452.0,0.10197811]
[1726600931718,0.002,60453.0,60452.0,0.10197811]
[1726600932112,0.19,60462.0,60461.0,0.082677]
[1726600932311,0.08514924,60468.0,60466.0,0.08267]
[1726600932312,0.00248124,60468.0,60466.0,0.08267]
[1726600932527,0.5508,60467.0,60466.0,0.08267]
[1726600932830,0.633469,60467.0,60466.0,0.08267]
[1726600933622,0.634469,60467.0,60466.0,0.08867]
[1726600934017,0.717138,60467.0,60466.0,0.006]
[1726600934829,0.718138,60467.0,60466.0,0.006]
[1726600935622,0.635469,60467.0,60466.0,0.006]
[1726600936919,0.718138,60467.0,60466.0,0.006]
[1726600937122,0.082684,60456.0,60452.0,0.00248114]
[1726600937326,0.355376,60453.0,60452.0,0.00248114]
[1726600937516,0.355376,60453.0,60452.0,0.01126621]
[1726600937717,0.355376,60453.0,60440.0,0.443504]
[1726600937718,0.082704,60441.0,60440.0,0.443504]
[1726600937916,0.272704,60441.0,60440.0,0.45220514]
[1726600938220,0.272704,60441.0,60440.0,0.443504]
[1726600938616,0.19,60441.0,60440.0,0.443504]
[1726600938824,0.19,60441.0,60440.0,0.082704]
[1726600939025,0.191,60441.0,60440.0,0.082704]
[1726600939527,0.191,60441.0,60433.0,0.136]
[1726600939528,0.191,60441.0,60433.0,0.082714]
[1726600939822,0.19,60434.0,60433.0,0.082714]
[1726600940029,0.372711,60436.0,60433.0,0.082714]
[1726600940333,0.29,60436.0,60434.0,0.082714]
[1726600940519,0.372711,60436.0,60434.0,0.082714]
[1726600940715,0.082714,60435.0,60431.0,0.00873825]
[1726600940923,0.082714,60435.0,60429.0,0.00248223]
[1726600941318,0.082714,60435.0,60429.0,0.01125518]
[1726600941521,0.082714,60435.0,60433.0,0.082715]
[1726600941923,0.083714,60435.0,60433.0,0.443515]
[1726600942127,0.082714,60434.0,60433.0,0.3608]
[1726600943217,0.082719,60430.0,60429.0,0.01120214]
[1726600943422,0.372719,60430.0,60429.0,0.01120214]
[1726600943720,0.372719,60430.0,60429.0,0.01220214]
[1726600944223,0.455438,60430.0,60429.0,0.00248223]
[1726600944431,0.373719,60430.0,60429.0,0.00248223]
[1726600944827,0.374719,60430.0,60429.0,0.00248223]
[1726600947326,0.373719,60430.0,60429.0,0.08520323]
[1726600947528,0.374719,60430.0,60429.0,0.08520323]
[1726600947722,0.373719,60430.0,60429.0,0.05920323]
[1726600948721,0.001,60430.0,60429.0,0.42000323]
[1726600948922,0.082701,60444.0,60437.0,0.08271]
[1726600949131,0.44597991,60446.0,60437.0,0.3608]
[1726600949339,0.372699,60445.0,60437.0,0.3608]
[1726600949534,0.372699,60445.0,60437.0,0.41002835]
[1726600949731,0.082702,60443.0,60441.0,0.082704]
[1726600950035,0.36328191,60446.0,60441.0,0.082704]
[1726600950036,0.372703,60442.0,60441.0,0.082704]
[1726600950828,0.33132238,60442.0,60441.0,0.082704]
[1726600951030,0.24861938,60442.0,60441.0,0.082704]
[1726600951928,0.24861938,60442.0,60441.0,0.002]
[1726600952236,0.33132238,60442.0,60441.0,0.002]
[1726600953529,0.41402538,60442.0,60441.0,0.002]
[1726600954032,0.33132238,60442.0,60441.0,0.002]
[1726600955337,0.41402538,60442.0,60441.0,0.002]
[1726600955635,0.33132238,60442.0,60441.0,0.002]
[1726600955936,0.24861938,60442.0,60441.0,0.13393235]
[1726600956136,0.33132238,60442.0,60441.0,0.13393235]
[1726600956346,0.33132238,60442.0,60441.0,0.084704]
[1726600957242,0.24861938,60442.0,60441.0,0.084704]
[1726600957637,0.33132238,60442.0,60441.0,0.084704]
[1726600962142,0.272703,60442.0,60441.0,0.084704]
[1726600966247,0.272703,60442.0,60441.0,0.16705891]
[1726600966547,0.272703,60442.0,60441.0,0.12803921]
[1726600966743,0.355406,60442.0,60441.0,0.12803921]
[1726600967046,0.355406,60442.0,60441.0,0.12803999]
[1726600967345,0.272703,60442.0,60441.0,0.12803999]
[1726600967946,0.355406,60442.0,60441.0,0.12803999]
[1726600968943,0.438109,60442.0,60441.0,0.12803999]
[1726600969140,0.574809,60442.0,60441.0,0.12803999]
[1726600969335,0.574809,60442.0,60441.0,0.002]
[1726600970247,0.715809,60442.0,60441.0,0.002]
[1726600971448,0.767506,60442.0,60441.0,0.002]
[1726600971644,0.633106,60442.0,60441.0,0.21063556]
[1726600971943,0.633106,60442.0,60441.0,0.002]
[1726600972445,0.633106,60442.0,60441.0,0.08458586]
[1726600972651,0.633106,60442.0,60441.0,0.2106326]
[1726600972951,0.633106,60442.0,60441.0,0.002]
[1726600973244,1.076609,60442.0,60441.0,0.002]
[1726600978453,0.16542,60437.0,60436.0,0.04955544]
[1726600978643,0.35342,60437.0,60436.0,0.04955544]
[1726600978854,0.082711,60436.0,60435.0,0.04955544]
[1726600979149,0.165422,60436.0,60435.0,0.04955544]
[1726600979548,0.082711,60436.0,60435.0,0.13226744]
[1726600980247,0.082714,60434.0,60433.0,0.00248207]
[1726600980443,0.165428,60434.0,60433.0,0.08519707]
[1726600980744,0.165428,60434.0,60433.0,0.21126027]
[1726600981246,0.248142,60434.0,60433.0,0.12854527]
[1726600981745,0.608942,60434.0,60433.0,0.12854527]
[1726600981941,0.526228,60434.0,60433.0,0.21118789]
[1726600982146,0.526228,60434.0,60433.0,0.00248207]
[1726600982754,0.082714,60434.0,60433.0,0.00248207]
[1726600982947,0.082714,60434.0,60433.0,0.21118183]
[1726600983342,0.082714,60434.0,60433.0,0.00248207]
[1726600984239,0.082714,60434.0,60433.0,0.08519707]
[1726600985446,0.086714,60434.0,60433.0,0.08519707]
[1726600986454,0.169428,60434.0,60433.0,0.00248207]
[1726600986651,0.169428,60434.0,60427.0,0.00867502]
[1726600986652,0.082722,60431.0,60427.0,0.00867502]
[1726600986855,0.086714,60434.0,60428.0,0.20878441]
[1726600986856,0.082721,60429.0,60428.0,0.20878441]
[1726600987375,0.165472,60418.0,60406.0,0.11545833]
[1726600987653,0.165472,60418.0,60397.0,0.082764]
[1726600987654,0.082766,60396.0,60394.0,0.00813668]
[1726600987845,0.9116,60395.0,60389.0,0.082775]
[1726600988050,0.9116,60395.0,60386.0,0.26305833]
[1726600988051,0.49282835,60390.0,60386.0,0.230379]
[1726600988360,0.49282835,60390.0,60389.0,0.14875405]
[1726600988752,0.19,60390.0,60389.0,0.14875405]
[1726600988948,0.5508,60390.0,60389.0,0.082775]
[1726600989160,0.5508,60390.0,60387.0,0.04942195]
[1726600989451,0.082775,60389.0,60387.0,0.04942195]
[1726600989649,0.082777,60388.0,60385.0,0.00248383]
[1726600989854,0.5508,60386.0,60385.0,0.05190554]
[1726600990056,0.633579,60386.0,60385.0,0.00248383]
[1726600990255,0.5508,60386.0,60376.0,0.00084]
[1726600990458,0.633592,60377.0,60376.0,0.00084]
[1726600990654,0.633592,60377.0,60363.0,0.2854]
[1726600990655,0.3608,60377.0,60363.0,0.04942171]
[1726600990960,0.5508,60364.0,60360.0,0.04942171]
[1726600991158,0.5508,60364.0,60354.0,0.04942171]
[1726600991458,0.19,60357.0,60354.0,0.082823]
[1726600991756,0.3608,60365.0,60364.0,0.08281]
[1726600991956,0.3608,60365.0,60362.0,0.0492573]
[1726600992157,0.19,60363.0,60352.0,0.0024854]
[1726600992362,0.3608,60359.0,60358.0,0.082818]
[1726600992561,0.5508,60359.0,60358.0,0.082818]
[1726600992861,0.5508,60359.0,60353.0,0.1405]
[1726600993164,0.5508,60359.0,60352.0,0.09433066]
[1726600993165,0.19,60354.0,60352.0,0.09433066]
[1726600993560,0.19,60354.0,60353.0,0.49708]
[1726600993755,0.19,60354.0,60353.0,1.09708]
[1726600993969,0.19,60358.0,60353.0,1.09708]
[1726600994177,0.19,60358.0,60356.0,0.082819]
[1726600994676,0.19,60358.0,60352.0,0.01150466]
[1726600994677,0.3608,60359.0,60358.0,0.082818]
[1726600995075,0.3608,60359.0,60358.0,0.579858]
[1726600995272,0.3027971,60359.0,60358.0,1.179858]
[1726600995462,0.4927971,60359.0,60358.0,0.579858]
[1726600995662,0.4927971,60359.0,60354.0,0.0492573]
[1726600995867,0.3037971,60359.0,60354.0,0.49708]
[1726600996073,0.19,60355.0,60353.0,0.0492573]
[1726600996267,0.19,60355.0,60352.0,0.01150466]
[1726600996268,0.3608,60354.0,60352.0,0.01150466]
[1726600997670,0.3608,60354.0,60352.0,0.0024854]
[1726600997869,0.3608,60354.0,60352.0,0.0853114]
[1726600998069,0.3618,60354.0,60352.0,0.0853114]
[1726600998377,0.29,60353.0,60352.0,0.0024854]
[1726600998573,0.3618,60354.0,60352.0,0.0024854]
[1726600998881,0.3618,60354.0,60353.0,0.082825]
[1726601000473,0.3608,60354.0,60353.0,0.082825]
[1726601000669,0.30528258,60359.0,60358.0,0.082818]
[1726601000873,0.30528258,60359.0,60358.0,0.579858]
[1726601001076,0.00248548,60359.0,60358.0,0.579858]
[1726601001371,0.3608,60366.0,60365.0,0.082808]
[1726601001975,0.3608,60366.0,60365.0,1.179768]
[1726601002172,0.3608,60366.0,60365.0,1.27157326]
[1726601002370,0.0024846,60378.0,60377.0,0.082792]
[1726601003079,0.0024846,60378.0,60377.0,1.179672]
[1726601003473,0.0024846,60378.0,60377.0,0.579672]
[1726601004279,0.29,60387.0,60377.0,0.49688]
[1726601004479,0.29,60387.0,60373.0,0.36328429]
[1726601004689,0.29,60387.0,60385.0,0.08278]
[1726601004977,0.3608,60389.0,60388.0,0.082777]
[1726601006281,0.165564,60384.0,60383.0,0.00248412]
[1726601006484,0.733582,60384.0,60370.0,0.0492573]
[1726601006685,0.733582,60384.0,60359.0,0.146]
[1726601006686,0.29,60369.0,60365.0,0.0492573]
[1726601006981,0.082808,60365.0,60363.0,0.0492573]
[1726601007179,0.29,60364.0,60363.0,0.1320683]
[1726601007383,0.29,60364.0,60363.0,0.082811]
[1726601008088,0.29,60369.0,60367.0,0.082805]
[1726601008385,0.372803,60369.0,60367.0,0.082805]
[1726601008773,0.3608,60371.0,60366.0,0.04899512]
[1726601009280,0.3608,60371.0,60367.0,0.04899512]
[1726601009585,0.3608,60376.0,60368.0,0.04899512]
[1726601009790,0.3608,60376.0,60373.0,0.04899512]
[1726601009984,0.082797,60373.0,60371.0,0.04899512]
[1726601010283,0.0828,60371.0,60370.0,0.04899512]
[1726601010489,0.082801,60370.0,60369.0,0.0024845]
[1726601010683,0.082801,60370.0,60369.0,0.0852875]
[1726601011280,0.3608,60371.0,60370.0,0.082801]
[1726601011774,0.3608,60371.0,60369.0,0.0024845]
[1726601011775,0.082801,60370.0,60369.0,0.0024845]
[1726601011977,0.082801,60370.0,60369.0,0.0064845]
[1726601012386,0.079801,60370.0,60369.0,0.0024845]
[1726601012982,0.080801,60370.0,60369.0,0.0084845]
[1726601014484,0.079721,60370.0,60369.0,0.0064845]
[1726601015788,0.3608,60371.0,60352.0,0.3608]
[1726601015984,0.29,60356.0,60352.0,0.36980823]
[1726601016286,0.082825,60353.0,60352.0,0.00900823]
[1726601016485,0.082825,60353.0,60348.0,0.00248508]
[1726601016691,0.082825,60353.0,60352.0,0.082825]
[1726601018293,0.080825,60353.0,60352.0,0.082825]
[1726601018480,0.23198929,60356.0,60352.0,0.65895565]
[1726601018687,0.082825,60353.0,60352.0,0.19828333]
[1726601018891,0.082825,60353.0,60352.0,0.66100413]
[1726601019088,0.1345,60358.0,60357.0,0.082819]
[1726601019293,0.3608,60366.0,60365.0,0.082808]
[1726601019492,0.3608,60366.0,60356.0,0.21477238]
[1726601019687,0.443608,60366.0,60365.0,0.082808]
[1726601020085,0.3608,60366.0,60365.0,0.082808]
[1726601020289,0.443607,60366.0,60365.0,0.082808]
[1726601020687,0.3608,60366.0,60365.0,0.082808]
[1726601021691,0.3698,60366.0,60365.0,0.082808]
[1726601021894,0.3698,60366.0,60365.0,0.579768]
[1726601022095,0.009,60366.0,60365.0,0.75495622]
[1726601022602,0.009,60366.0,60365.0,0.58843332]
[1726601023099,0.009,60366.0,60365.0,0.09147332]
[1726601025186,0.009,60366.0,60365.0,0.17428132]
[1726601025394,0.00248508,60367.0,60366.0,0.082807]
[1726601025593,0.00248508,60367.0,60366.0,0.526414]
[1726601025793,0.578092,60377.0,60376.0,0.082793]
[1726601026187,0.443592,60377.0,60376.0,0.082793]
[1726601026593,0.082795,60375.0,60374.0,0.09900511]
[1726601026791,0.443592,60377.0,60373.0,0.082796]
[1726601026792,0.082796,60374.0,60373.0,0.18180111]
[1726601026991,0.082796,60374.0,60373.0,0.09900511]
[1726601027392,0.082796,60374.0,60373.0,0.19052381]
[1726601027592,0.082796,60374.0,60373.0,0.0915187]
[1726601027900,0.081796,60374.0,60373.0,0.0915187]
[1726601028395,0.443592,60377.0,60376.0,0.082793]
[1726601028594,0.082795,60375.0,60374.0,0.082796]
[1726601028786,0.082797,60373.0,60371.0,0.1015035]
[1726601029101,0.507399,60372.0,60371.0,0.00248465]
[1726601029298,0.590198,60372.0,60371.0,0.00248465]
[1726601029601,0.082806,60367.0,60366.0,0.09901885]
[1726601029793,0.082807,60366.0,60365.0,0.18182685]
[1726601029990,0.082807,60366.0,60365.0,0.18184548]
[1726601030193,0.082807,60366.0,60365.0,0.082808]
[1726601031187,0.3608,60369.0,60368.0,0.082804]
[1726601031699,0.3598,60369.0,60368.0,0.18185283]
[1726601032593,0.3598,60369.0,60368.0,0.082804]
[1726601033393,0.3598,60369.0,60368.0,0.23357234]
[1726601033591,0.1346,60372.0,60371.0,0.0828]
[1726601033795,0.1346,60372.0,60371.0,0.23356834]
[1726601033999,0.1346,60372.0,60371.0,0.31636834]
[1726601034201,0.3608,60376.0,60375.0,0.082795]
[1726601034406,0.3608,60376.0,60375.0,0.35953756]
[1726601034902,0.443593,60376.0,60375.0,0.35953756]
[1726601035498,0.3608,60376.0,60375.0,0.35953756]
[1726601037609,0.3608,60376.0,60375.0,0.44233256]
[1726601038497,0.31109531,60376.0,60375.0,0.44233256]
[1726601040008,0.31109531,60376.0,60375.0,0.29176528]
[1726601040506,0.31109531,60376.0,60375.0,0.20897028]
[1726601041004,0.007,60377.0,60376.0,0.165586]
[1726601041194,0.1278,60385.0,60384.0,0.082782]
[1726601041400,0.1278,60385.0,60384.0,0.65253928]
[1726601041604,0.1278,60385.0,60384.0,0.56975728]
[1726601042105,0.4292,60392.0,60384.0,0.56975728]
[1726601042106,0.1392,60392.0,60391.0,0.082773]
[1726601043501,0.1392,60392.0,60391.0,0.14874803]
[1726601043708,0.511971,60392.0,60391.0,0.14874803]
[1726601044011,0.511971,60392.0,60391.0,0.15779524]
[1726601044308,0.511971,60392.0,60391.0,0.09182021]
[1726601044309,0.511811,60392.0,60391.0,0.09182021]
[1726601044698,0.594582,60392.0,60391.0,0.00904721]
[1726601044897,0.082774,60390.0,60389.0,0.14875003]
[1726601045201,0.082774,60390.0,60389.0,0.09181775]
[1726601045604,0.443574,60390.0,60389.0,0.09181775]
[1726601045801,0.9608,60390.0,60377.0,0.08243269]
[1726601046007,0.08281,60364.0,60358.0,0.082817]
[1726601046307,0.19,60364.0,60353.0,0.00248486]
[1726601046506,0.3608,60368.0,60367.0,0.082806]
[1726601046810,0.19,60372.0,60364.0,0.00248487]
[1726601046811,0.3608,60371.0,60364.0,0.00248487]
[1726601047011,0.082808,60366.0,60364.0,0.00248487]
[1726601047210,0.082808,60365.0,60364.0,0.00248487]
[1726601048003,0.0852879,60369.0,60366.0,0.082807]
[1726601048198,0.082805,60368.0,60364.0,0.00908577]
[1726601048399,0.3632849,60369.0,60364.0,0.082808]
[1726601049206,0.082808,60366.0,60365.0,0.082808]
[1726601051206,0.3632849,60369.0,60368.0,0.082804]
[1726601053310,0.3632849,60369.0,60368.0,0.455608]
[1726601053619,0.3632849,60369.0,60368.0,0.952568]
[1726601054015,0.3632849,60369.0,60368.0,0.579764]
[1726601054410,0.3608,60369.0,60368.0,0.579764]
[1726601054609,0.3608,60369.0,60368.0,0.662568]
[1726601054810,0.3608,60369.0,60368.0,0.082804]
[1726601055511,0.30280848,60369.0,60368.0,0.28850407]
[1726601056316,0.30280848,60369.0,60368.0,0.20570007]
[1726601056722,0.30280848,60369.0,60368.0,0.21463147]
[1726601058016,0.38561148,60369.0,60368.0,0.0089314]
[1726601058221,0.082807,60367.0,60366.0,0.082807]
[1726601059016,0.082807,60367.0,60362.0,0.00248458]
[1726601059017,0.30280848,60369.0,60362.0,0.00248458]
[1726601059215,0.3608,60363.0,60362.0,0.08529658]
[1726601059517,0.3608,60363.0,60362.0,0.20779152]
[1726601059715,0.3608,60363.0,60362.0,0.207815]
[1726601062131,0.3608,60363.0,60362.0,0.08501658]
[1726601063427,0.3608,60363.0,60362.0,0.00220458]
[1726601063428,0.899233,60363.0,60362.0,0.00220458]
[1726601063722,0.899233,60363.0,60343.0,0.21479038]
[1726601063723,0.082825,60353.0,60352.0,0.00248541]
[1726601063923,0.443625,60353.0,60352.0,0.00248541]
[1726601064517,0.52645,60353.0,60352.0,0.00248541]
[1726601064918,0.443625,60353.0,60352.0,0.00248541]
[1726601065130,0.52645,60353.0,60352.0,0.00248541]
[1726601065318,0.7216,60353.0,60337.0,0.3271]
[1726601065519,0.3608,60341.0,60340.0,0.082843]
[1726601066036,0.3608,60341.0,60340.0,0.580003]
[1726601066728,0.3608,60346.0,60345.0,0.082836]
[1726601067031,0.3608,60346.0,60345.0,0.372836]
[1726601067417,0.3608,60346.0,60345.0,0.082836]
[1726601069428,0.082828,60351.0,60350.0,0.082829]
[1726601070124,0.082828,60351.0,60346.0,0.00248552]
[1726601070125,0.91284,60353.0,60346.0,0.00248552]
[1726601070325,0.3608,60347.0,60346.0,0.08531952]
[1726601071125,0.443633,60347.0,60346.0,0.08531952]
[1726601071533,0.443633,60347.0,60346.0,0.00248552]
[1726601072533,0.3608,60347.0,60346.0,0.08531952]
[1726601073027,0.443633,60347.0,60346.0,0.00248552]
[1726601074532,0.443633,60347.0,60346.0,0.00244552]
[1726601075935,0.443633,60347.0,60346.0,0.08527952]
[1726601076835,0.526466,60347.0,60346.0,0.08527952]
[1726601077134,0.443633,60347.0,60346.0,0.08527952]
[1726601077330,0.3608,60347.0,60346.0,0.08527952]
[1726601077536,0.3618,60347.0,60346.0,0.17911352]
[1726601077931,0.2752,60358.0,60346.0,0.09627952]
[1726601077932,0.3608,60352.0,60346.0,0.09627952]
[1726601078132,0.3608,60352.0,60351.0,0.272827]
[1726601078338,0.3608,60352.0,60351.0,0.082827]
[1726601079137,0.3618,60352.0,60351.0,0.082827]
[1726601079333,0.3618,60352.0,60351.0,0.165654]
[1726601079741,0.3618,60352.0,60351.0,0.955654]
[1726601080034,0.001,60352.0,60351.0,0.852734]
[1726601080234,0.001,60352.0,60351.0,0.579907]
[1726601080440,0.001,60352.0,60351.0,1.262734]
[1726601080938,0.001,60352.0,60351.0,1.179907]
[1726601081130,0.3608,60353.0,60352.0,0.165652]
[1726601081538,0.3608,60353.0,60352.0,0.662732]
[1726601081941,0.3608,60353.0,60352.0,0.579906]
[1726601082235,0.3618,60353.0,60352.0,0.586906]
[1726601082929,0.3618,60353.0,60352.0,0.089826]
[1726601085629,0.3618,60353.0,60352.0,0.21303306]
[1726601085939,0.32036732,60353.0,60352.0,0.21303306]
[1726601086237,0.32036732,60353.0,60352.0,0.48585906]
[1726601086630,0.001,60353.0,60352.0,0.48585906]
[1726601086831,0.19,60364.0,60352.0,0.48585906]
[1726601086832,0.1387,60368.0,60357.0,0.082819]
[1726601087128,0.3608,60370.0,60369.0,0.082803]
[1726601087836,0.3608,60370.0,60369.0,0.28726468]
[1726601088142,0.3608,60370.0,60369.0,0.16535518]
[1726601088340,0.3728,60370.0,60369.0,0.083803]
[1726601089342,0.37268,60370.0,60369.0,0.09284773]
[1726601090441,0.37268,60370.0,60369.0,0.17565073]
[1726601090636,0.37268,60370.0,60369.0,0.09284773]
[1726601091042,0.37268,60370.0,60369.0,0.17565073]
[1726601091549,0.37268,60370.0,60369.0,1.27257073]
[1726601091732,0.012,60370.0,60369.0,1.47695872]
[1726601092040,0.012,60370.0,60369.0,1.31160354]
[1726601092241,0.012,60370.0,60369.0,0.29702571]
[1726601092443,0.012,60370.0,60369.0,0.09284773]
[1726601092831,0.00248458,60375.0,60374.0,0.082796]
[1726601093032,0.3608,60379.0,60374.0,0.00847909]